bitfinex/quotes_SOLUSD_20260226
["timestamp","ask_amount","ask_price","bid_price","bid_amount"]
[1772119999754,10.02796398,86.0,85.962,11.63304716]
[1772119999954,1.38860011,85.999,85.96,10.02796398]
[1772120000359,1.38860011,85.999,85.97,10.02796398]
[1772120000859,1.38860011,85.999,85.96,10.02796398]
[1772120001547,1.38860011,85.997,85.96,21.66120078]
[1772120003031,1.38860011,85.997,85.922,1.38628081]
[1772120003233,11.62817739,85.998,85.88,0.2]
[1772120003234,10.02796398,85.96,85.911,1.38628081]
[1772120003442,10.02796398,85.96,85.921,1.38628081]
[1772120003655,11.63345315,85.959,85.93,10.02796398]
[1772120003843,10.02796398,85.97,85.93,10.02796398]
[1772120003844,11.63280152,85.964,85.93,10.02796398]
[1772120004048,11.63280152,85.964,85.931,1.38628081]
[1772120004456,1.38860011,85.959,85.91,10.02796398]
[1772120004759,1.38860011,85.959,85.911,1.38628081]
[1772120004941,1.38860011,85.959,85.92,10.02796398]
[1772120005142,40.71474279,85.964,85.93,11.41424479]
[1772120005143,11.63280152,85.964,85.93,11.41424479]
[1772120005336,11.63280152,85.964,85.93,10.02796398]
[1772120005655,13.02070005,85.969,85.931,11.63724383]
[1772120005954,11.63061177,85.98,85.95,10.02796398]
[1772120006187,1.36242755,85.979,85.94,10.02796398]
[1772120007336,1.36242755,85.979,85.94,10.03656727]
[1772120007665,40.70714119,85.98,85.899,11.64157906]
[1772120007666,5.36086188,85.944,85.899,11.64157906]
[1772120007863,1.36242755,85.943,85.91,10.03656727]
[1772120008160,1.36242755,85.977,85.931,1.38506815]
[1772120008361,5.36086188,85.967,85.92,10.03656727]
[1772120008577,1.36242755,85.949,85.91,10.03656727]
[1772120008739,1.36242755,85.939,85.9,10.03656727]
[1772120009160,10.03656727,85.93,85.895,1.38506815]
[1772120009356,1.36242755,85.939,85.9,10.03656727]
[1772120009865,11.63618493,85.939,85.91,10.03656727]
[1772120010254,1.36242755,85.938,85.9,10.03656727]
[1772120010658,1.36242755,85.938,85.899,1.38506815]
[1772120010845,1.36242755,85.938,85.9,10.03656727]
[1772120011261,1.36242755,85.938,85.899,1.38506815]
[1772120011773,9.0546959,85.953,85.89,10.03656727]
[1772120011774,1.36242755,85.929,85.89,10.03656727]
[1772120011965,1.36242755,85.929,85.891,1.38506815]
[1772120013460,1.36242755,85.929,85.88,10.23656727]
[1772120013461,1.36242755,85.909,85.88,0.2]
[1772120013853,1.36242755,85.924,85.882,1.38506815]
[1772120014054,10.03656727,85.93,85.891,1.38506815]
[1772120014465,1.36242755,85.929,85.891,1.38506815]
[1772120014770,10.03656727,85.92,85.88,10.23656727]
[1772120014987,1.36242755,85.919,85.88,10.23656727]
[1772120015154,1.36242755,85.919,85.89,10.03656727]
[1772120015473,1.36242755,85.929,85.89,10.03656727]
[1772120015690,12.99858808,85.94,85.901,1.38506815]
[1772120015894,1.36242755,85.94,85.903,1.38506815]
[1772120016075,10.03656727,85.95,85.911,1.38506815]
[1772120016393,42.08425094,85.949,85.911,1.38506815]
[1772120016551,11.63480668,85.949,85.92,10.03656727]
[1772120016751,11.63209994,85.969,85.931,1.38506815]
[1772120017064,11.63159191,85.973,85.941,1.38506815]
[1772120017265,1.36242755,85.972,85.94,10.03656727]
[1772120017665,1.36589261,85.969,85.93,11.42163542]
[1772120017969,1.36589261,85.959,85.92,10.03656727]
[1772120018475,1.36589261,85.949,85.91,10.03656727]
[1772120019077,1.36589261,85.949,85.911,1.31974981]
[1772120019455,1.36589261,85.949,85.92,10.03656727]
[1772120020171,11.63345315,85.959,85.921,12.95834805]
[1772120020364,1.36589261,85.958,85.921,1.31974981]
[1772120020573,1.36589261,85.949,85.91,10.03656727]
[1772120020768,1.36589261,85.939,85.901,1.31974981]
[1772120021160,1.36589261,85.929,85.88,21.88070433]
[1772120021366,1.36589261,85.919,85.881,11.64401904]
[1772120021566,1.36589261,85.919,85.89,10.03656727]
[1772120021778,1.36589261,85.934,85.891,1.31974981]
[1772120022095,1.36589261,85.927,85.881,11.64401904]
[1772120022387,1.36589261,85.927,85.88,11.55631708]
[1772120022748,1.36589261,85.927,85.881,11.64401904]
[1772120022951,1.36589261,85.927,85.88,11.55631708]
[1772120023359,11.63765012,85.928,85.891,1.31974981]
[1772120023577,11.63709135,85.933,85.901,1.31974981]
[1772120023765,46.53381263,85.959,85.881,40.75406666]
[1772120023766,10.03656727,85.95,85.911,1.31974981]
[1772120024162,11.63480668,85.949,85.92,10.03656727]
[1772120024356,11.63223525,85.968,85.931,1.31974981]
[1772120024557,11.6316936,85.973,85.941,1.31974981]
[1772120024778,10.03656727,85.97,85.931,1.31974981]
[1772120024968,1.36589261,85.972,85.931,1.31974981]
[1772120025275,11.40245988,85.97,85.931,1.31974981]
[1772120025478,9.0546959,85.993,85.951,1.31974981]
[1772120025479,11.62939445,85.989,85.951,1.31974981]
[1772120025664,11.62736616,86.004,85.97,10.03656727]
[1772120025869,1.36589261,85.999,85.961,1.31974981]
[1772120026062,11.62817739,85.998,85.962,11.63304716]
[1772120026969,1.36589261,85.997,85.96,10.03656727]
[1772120027284,11.62817739,85.998,85.97,10.03656727]
[1772120027485,40.69862088,85.998,85.961,1.31974981]
[1772120027773,11.40245988,85.99,85.951,1.31974981]
[1772120028277,1.36589261,85.988,85.951,1.31974981]
[1772120028658,1.36589261,85.988,85.953,1.31974981]
[1772120028858,1.36589261,85.988,85.952,40.72040207]
[1772120028859,11.62669023,86.009,85.971,1.31974981]
[1772120029359,1.36589261,85.999,85.96,11.35631708]
[1772120029572,1.36589261,85.989,85.95,10.03656727]
[1772120030183,11.6295297,85.988,85.95,10.03656727]
[1772120030484,12.99542231,85.988,85.95,10.03656727]
[1772120030779,11.6258792,86.015,85.951,1.31974981]
[1772120030962,11.6258792,86.015,85.949,40.72176377]
[1772120030963,1.36589261,86.014,85.98,10.03656727]
[1772120031271,1.36589261,85.999,85.955,1.31974981]
[1772120031468,5.36086188,86.013,85.945,11.6353335]
[1772120031469,1.36589261,85.989,85.945,11.6353335]
[1772120031676,1.36589261,85.989,85.95,10.03656727]
[1772120032263,10.03656727,85.98,85.949,1.31974981]
[1772120032577,11.62777177,86.001,85.961,1.31974981]
[1772120032778,11.62574404,86.016,85.981,1.31974981]
[1772120032978,12.99163665,86.016,85.981,1.31974981]
[1772120033180,42.05599676,86.016,85.981,1.31974981]
[1772120033568,1.36589261,86.009,85.967,1.31974981]
[1772120033880,10.03656727,86.0,85.967,1.31974981]
[1772120034072,1.36589261,85.999,85.967,1.31974981]
[1772120034272,1.36589261,85.988,85.956,1.31974981]
[1772120034674,1.36589261,85.979,85.94,10.03656727]
[1772120034876,1.36589261,85.979,85.941,11.63588973]
[1772120035078,1.36589261,85.979,85.94,10.03656727]
[1772120035778,1.36589261,85.979,85.941,1.31974981]
[1772120036362,10.03656727,86.01,85.961,1.31615511]
[1772120036572,11.626811,86.009,85.971,1.31615511]
[1772120036782,11.626811,86.009,85.942,40.7251402]
[1772120036783,1.35532363,85.989,85.95,10.03656727]
[1772120037084,1.35532363,85.989,85.951,1.31615511]
[1772120038290,1.35532363,85.989,85.952,11.63440059]
[1772120038291,11.6295297,85.988,85.952,11.63440059]
[1772120038473,1.35532363,85.987,85.951,1.31615511]
[1772120038685,10.03656727,85.98,85.951,1.31615511]
[1772120038983,1.35532363,85.987,85.944,11.63545902]
[1772120039183,40.70335395,85.988,85.901,1.31615511]
[1772120039184,1.35532363,85.949,85.901,1.31615511]
[1772120039379,1.35532363,85.949,85.911,1.31615511]
[1772120039579,10.03656727,85.96,85.911,1.31615511]
[1772120039769,10.03656727,85.97,85.921,1.31615511]
[1772120040089,1.35532363,85.969,85.921,1.31615511]
[1772120040291,1.35532363,85.969,85.93,10.03656727]
[1772120040479,1.35532363,85.959,85.921,1.31615511]
[1772120040690,11.3918909,85.95,85.911,1.31615511]
[1772120041790,10.03656727,85.95,85.911,1.31615511]
[1772120041984,1.35532363,85.952,85.92,10.03656727]
[1772120042372,11.63480668,85.949,85.911,1.31615511]
[1772120042586,1.35532363,85.939,85.899,1.31615511]
[1772120042790,1.35532363,85.939,85.9,10.03656727]
[1772120043093,1.35532363,85.939,85.901,1.31615511]
[1772120043290,1.35532363,85.919,85.88,10.23656727]
[1772120043491,1.35532363,85.889,85.86,0.2]
[1772120043671,5.36086188,85.899,85.861,1.31615511]
[1772120043869,10.03656727,85.98,85.861,1.31615511]
[1772120043870,11.3918909,85.91,85.861,1.31615511]
[1772120044077,10.03656727,85.88,85.86,0.2]
[1772120044676,4.75236609,85.88,85.86,0.2]
[1772120044981,10.03656727,85.87,85.86,0.2]
[1772120045768,1.35532363,85.869,85.84,0.2]
[1772120045972,10.03656727,85.86,85.84,0.2]
[1772120046183,10.03656727,85.86,85.84,11.84947098]
[1772120046580,10.03656727,85.87,85.841,1.31615511]
[1772120046792,10.03656727,85.86,85.84,0.2]
[1772120047094,10.03656727,85.86,85.841,11.6494449]
[1772120047302,10.03656727,85.85,85.83,0.2]
[1772120047598,10.03656727,85.86,85.831,11.65080215]
[1772120047980,10.03656727,85.86,85.832,1.31615511]
[1772120048293,10.03656727,85.85,85.83,0.2]
[1772120048474,21.68626751,85.84,85.807,1.31615511]
[1772120048673,21.68626751,85.84,85.77,46.73615003]
[1772120048674,10.03656727,85.83,85.792,1.31615511]
[1772120048902,10.03656727,85.84,85.792,1.31615511]
[1772120049190,10.03656727,85.83,85.792,1.31615511]
[1772120049800,10.03656727,85.82,85.792,1.31615511]
[1772120050100,10.03656727,85.81,85.79,0.2]
[1772120050389,1.35532363,85.809,85.77,0.1]
[1772120050592,5.36086188,85.818,85.75,10.13656727]
[1772120050593,1.35532363,85.789,85.75,10.13656727]
[1772120050780,5.36086188,85.8,85.753,11.6613996]
[1772120051093,5.36086188,85.8,85.75,0.1]
[1772120051094,10.03656727,85.77,85.75,0.1]
[1772120051293,11.3918909,85.79,85.752,36.42910639]
[1772120051493,46.14959952,85.808,85.752,24.76768914]
[1772120051494,10.03656727,85.78,85.752,24.76768914]
[1772120051796,10.03656727,85.78,85.726,3.69383402]
[1772120051797,1.35532363,85.759,85.691,29.17459243]
[1772120051999,10.03656727,85.73,85.691,29.17459243]
[1772120052304,1.35532363,85.739,85.68,10.03656727]
[1772120052478,40.82632481,85.729,85.68,10.03656727]
[1772120052678,40.82632481,85.729,85.642,46.70574268]
[1772120052679,10.03656727,85.73,85.685,1.31615511]
[1772120053000,10.03656727,85.73,85.691,1.31615511]
[1772120053199,1.35532363,85.776,85.711,1.31615511]
[1772120053386,10.03656727,85.8,85.76,10.03656727]
[1772120053702,10.03656727,85.8,85.762,1.31615511]
[1772120053876,1.35532363,85.808,85.77,10.03656727]
[1772120054073,11.3918909,85.82,85.78,10.03656727]
[1772120054298,11.65243127,85.819,85.78,10.03656727]
[1772120054494,10.03656727,85.83,85.79,10.03656727]
[1772120054690,1.35532363,85.833,85.79,10.03656727]
[1772120054875,1.35532363,85.833,85.781,12.97374828]
[1772120054876,10.03656727,85.83,85.781,12.97374828]
[1772120055075,10.03656727,85.81,85.774,11.65847881]
[1772120055282,10.03656727,85.81,85.77,11.65908825]
[1772120055895,10.03656727,85.79,85.75,10.03656727]
[1772120056280,3.69383402,85.823,85.732,29.16047475]
[1772120056281,10.03656727,85.78,85.735,3.69383402]
[1772120056487,10.03656727,85.78,85.741,11.66303168]
[1772120056694,10.03656727,85.77,85.734,11.66397575]
[1772120056889,10.03656727,85.76,85.72,21.70245621]
[1772120057088,10.03656727,85.75,85.71,10.03656727]
[1772120057291,1.35532363,85.749,85.71,10.03656727]
[1772120057597,10.03656727,85.72,85.681,1.31615511]
[1772120057799,1.35532363,85.745,85.681,1.31615511]
[1772120057997,11.3918909,85.72,85.68,10.03656727]
[1772120058200,1.35532363,85.735,85.69,10.03656727]
[1772120058497,1.35532363,85.735,85.701,11.66847528]
[1772120058735,1.35532363,85.737,85.7,10.03656727]
[1772120059196,1.35532363,85.736,85.691,11.66983395]
[1772120059397,10.03656727,85.73,85.691,11.66983395]
[1772120059605,11.66357581,85.737,85.67,10.03656727]
[1772120059606,10.03656727,85.71,85.67,10.03656727]
[1772120059898,10.03656727,85.71,85.67,1.31615511]
[1772120060096,10.03656727,85.7,85.67,1.31615511]
[1772120060400,1.35532363,85.699,85.66,10.13656727]
[1772120060698,1.35532363,85.709,85.67,10.03656727]
[1772120060899,10.03656727,85.72,85.68,10.03656727]
[1772120061200,11.66423916,85.733,85.69,10.03656727]
[1772120061496,10.03656727,85.75,85.71,10.03656727]
[1772120061806,1.35532363,85.748,85.701,1.31615511]
[1772120062202,11.66194357,85.749,85.628,173.06086188]
[1772120062203,1.35532363,85.709,85.661,11.67392395]
[1772120062515,134.11235113,85.749,85.66,1.41615511]
[1772120062516,10.03656727,85.71,85.662,1.31615511]
[1772120062800,10.03656727,85.71,85.671,1.31615511]
[1772120063102,10.03656727,85.71,85.66,0.1]
[1772120063103,10.03656727,85.7,85.661,11.67392395]
[1772120063491,1.35532363,85.708,85.661,42.17488895]
[1772120063694,1.35532363,85.708,85.662,1.31615511]
[1772120064108,10.03656727,85.69,85.66,0.1]
[1772120064602,10.03656727,85.69,85.636,3.69383402]
[1772120064603,1.35532363,85.667,85.624,11.67896851]
[1772120064903,10.03656727,85.66,85.624,11.67896851]
[1772120065496,11.3918909,85.66,85.624,11.67896851]
[1772120065704,1.35532363,85.659,85.624,11.67896851]
[1772120065904,1.35532363,85.68,85.631,1.31615511]
[1772120066091,11.3918909,85.68,85.64,10.03656727]
[1772120066489,10.03656727,85.67,85.631,1.31615511]
[1772120066684,10.03656727,85.66,85.62,10.03656727]
[1772120066886,10.03656727,85.64,85.613,11.68041419]
[1772120067088,10.03656727,85.64,85.616,11.6800598]
[1772120067287,1.43720153,85.639,85.591,1.31056276]
[1772120067494,10.11838384,85.66,85.62,10.11838384]
[1772120067692,1.43720153,85.659,85.62,10.11838384]
[1772120068284,10.11838384,85.66,85.62,10.11838384]
[1772120068598,1.43720153,85.659,85.62,10.11838384]
[1772120068797,1.43720153,85.657,85.61,10.11838384]
[1772120068999,1.43720153,85.657,85.62,10.11838384]
[1772120069311,10.11838384,85.65,85.61,10.11838384]
[1772120069492,11.67433281,85.658,85.596,3.69383402]
[1772120069493,1.43720153,85.649,85.596,3.69383402]
[1772120069695,1.43720153,85.609,85.558,2.60379856]
[1772120069895,1.43720153,85.609,85.511,11.67433281]
[1772120069896,5.36086188,85.569,85.511,13.12013325]
[1772120070100,5.36086188,85.565,85.512,1.44580044]
[1772120070414,5.36086188,85.608,85.54,11.56418428]
[1772120070711,10.11838384,85.59,85.541,0.94580044]
[1772120071014,10.11838384,85.58,85.53,10.11838384]
[1772120071199,0.50074059,85.595,85.528,11.69207744]
[1772120071507,40.88832812,85.599,85.506,3.69383402]
[1772120071508,10.11838384,85.57,85.506,3.69383402]
[1772120071714,10.11838384,85.57,85.44,46.57487762]
[1772120071715,10.11838384,85.58,85.53,10.11838384]
[1772120071915,10.11838384,85.58,85.54,10.11838384]
[1772120072297,10.11838384,85.6,85.56,10.11838384]
[1772120072502,10.11838384,85.61,85.56,10.11838384]
[1772120072699,10.11838384,85.61,85.571,1.31056276]
[1772120072904,10.11838384,85.62,85.573,1.31056276]
[1772120073302,0.50206862,85.662,85.601,1.31056276]
[1772120073814,0.50206862,85.662,85.6,10.11838384]
[1772120073815,11.6736514,85.663,85.63,10.11838384]
[1772120074003,10.11838384,85.66,85.621,1.31056276]
[1772120074306,11.67302305,85.668,85.63,10.11838384]
[1772120074512,10.11838384,85.66,85.631,1.31056276]
[1772120074711,10.11838384,85.64,85.604,1.36635161]
[1772120074912,10.11838384,85.63,85.592,1.36635161]
[1772120075211,10.11838384,85.64,85.601,1.36635161]
[1772120075409,6.09757404,85.699,85.591,40.89214987]
[1772120075410,11.67310633,85.667,85.611,1.36635161]
[1772120075710,10.11838384,85.65,85.621,1.36635161]
[1772120076011,40.85587215,85.667,85.621,1.36635161]
[1772120076314,10.11838384,85.64,85.608,1.36635161]
[1772120076514,10.11838384,85.65,85.608,1.36635161]
[1772120076702,10.11838384,85.65,85.61,10.11838384]
[1772120077020,10.11838384,85.65,85.611,1.36635161]
[1772120077315,10.11838384,85.65,85.591,40.89214987]
[1772120077316,10.11838384,85.67,85.631,1.36635161]
[1772120078115,40.85301085,85.673,85.631,1.36635161]
[1772120078302,10.11838384,85.66,85.631,1.36635161]
[1772120078508,10.11838384,85.66,85.613,1.36635161]
[1772120079022,10.11838384,85.66,85.621,1.36635161]
[1772120079431,10.11838384,85.64,85.591,1.36635161]
[1772120079628,10.11838384,85.64,85.601,1.36635161]
[1772120079912,10.11838384,85.65,85.601,1.36635161]
[1772120080093,10.11838384,85.65,85.611,1.36635161]
[1772120080615,40.85968782,85.659,85.611,1.36635161]
[1772120081209,10.11838384,85.64,85.611,1.36635161]
[1772120081412,10.11838384,85.62,85.584,1.36635161]
[1772120081622,10.11838384,85.6,85.571,11.68606928]
[1772120082115,10.11838384,85.61,85.572,1.36635161]
[1772120082622,0.48567429,85.626,85.572,1.36635161]
[1772120082912,10.11838384,85.6,85.572,1.36635161]
[1772120083398,11.68237946,85.599,85.572,1.36635161]
[1772120083793,10.11838384,85.6,85.572,1.36635161]
[1772120084206,10.11838384,85.6,85.572,13.05239363]
[1772120084922,21.80066939,85.6,85.573,1.36635161]
[1772120085299,21.80066939,85.6,85.539,1.36635161]
[1772120085300,11.68510966,85.579,85.539,1.36635161]
[1772120085615,11.68510966,85.579,85.541,1.36635161]
[1772120085824,10.11838384,85.58,85.541,1.36635161]
[1772120085990,11.68430083,85.585,85.541,1.36635161]
[1772120086316,10.11838384,85.58,85.541,1.36635161]
[1772120087318,21.80619914,85.56,85.527,1.36635161]
[1772120087696,10.11838384,85.54,85.482,29.24562401]
[1772120087896,10.11838384,85.53,85.492,1.36635161]
[1772120088324,5.36086188,85.559,85.492,1.36635161]
[1772120088325,10.11838384,85.52,85.492,1.36635161]
[1772120088516,10.11838384,85.51,85.492,1.36635161]
[1772120088692,10.11838384,85.52,85.492,0.86635161]
[1772120088896,10.11838384,85.51,85.492,0.86635161]
[1772120089208,10.11838384,85.52,85.471,29.24968702]
[1772120089407,10.11838384,85.5,85.45,11.80275014]
[1772120089613,10.11838384,85.48,85.45,0.1]
[1772120089829,0.96882281,85.477,85.4,29.27400468]
[1772120089999,10.11838384,85.46,85.4,29.27400468]
[1772120090319,10.11838384,85.48,85.4,29.27400468]
[1772120090497,10.11838384,85.49,85.44,10.11838384]
[1772120090700,10.11838384,85.48,85.441,1.36635161]
[1772120090924,10.11838384,85.48,85.419,3.69383402]
[1772120090925,12.6614992,85.509,85.451,1.36635161]
[1772120091216,15.82892634,85.5,85.461,1.36635161]
[1772120091400,15.82892634,85.5,85.463,1.36635161]
[1772120091612,15.82892634,85.49,85.45,1.36635161]
[1772120091796,15.82892634,85.48,85.441,11.70398286]
[1772120091997,15.82892634,85.48,85.442,1.36635161]
[1772120092209,15.82892634,85.5,85.461,1.36635161]
[1772120092412,11.69262429,85.524,85.471,1.36635161]
[1772120092613,15.82892634,85.53,85.481,1.36635161]
[1772120092900,0.96289435,85.553,85.501,1.36635161]
[1772120093411,0.96289435,85.553,85.439,275.05003568]
[1772120093412,15.82892634,85.55,85.51,15.82892634]
[1772120093711,11.68920735,85.549,85.512,1.36635161]
[1772120093915,11.68790055,85.559,85.512,1.36635161]
[1772120094098,11.68790055,85.559,85.521,1.36635161]
[1772120094298,0.95936826,85.577,85.521,1.36635161]
[1772120094616,11.6855193,85.576,85.531,1.36635161]
[1772120094821,15.82892634,85.56,85.521,1.36635161]
[1772120095032,0.95936826,85.569,85.53,15.82892634]
[1772120095523,15.82892634,85.57,85.531,11.69166734]
[1772120095912,11.68661181,85.568,85.53,15.82892634]
[1772120096110,11.68661181,85.568,85.53,17.16943511]
[1772120096318,11.68661181,85.568,85.53,28.86115274]
[1772120097029,27.51393556,85.58,85.54,15.82892634]
[1772120097326,11.68500922,85.58,85.54,15.82892634]
[1772120097528,27.51393556,85.58,85.54,15.82892634]
[1772120097825,27.51393556,85.58,85.53,40.92122774]
[1772120097826,15.82892634,85.58,85.542,1.34050877]
[1772120098032,11.68510966,85.579,85.542,1.34050877]
[1772120098405,15.82892634,85.56,85.53,11.69180404]
[1772120098610,15.82892634,85.56,85.472,105.65666577]
[1772120098920,15.82892634,85.56,85.521,1.34050877]
[1772120099303,0.95166313,85.578,85.53,15.82892634]
[1772120099304,15.82892634,85.57,85.53,15.82892634]
[1772120099511,15.82892634,85.57,85.531,1.34050877]
[1772120099824,15.82892634,85.57,85.52,15.82892634]
[1772120099825,15.82892634,85.56,85.521,11.69303445]
[1772120100005,11.68661181,85.568,85.53,15.82892634]
[1772120100209,15.82892634,85.56,85.527,1.34050877]
[1772120100905,11.68661181,85.568,85.521,40.92562059]
[1772120100906,15.82892634,85.58,85.541,1.34050877]
[1772120101113,15.82892634,85.57,85.522,1.34050877]
[1772120101303,15.82892634,85.57,85.531,1.34050877]
[1772120101712,11.68647524,85.569,85.531,1.34050877]
[1772120101912,15.82892634,85.55,85.521,1.34050877]
[1772120102234,15.82892634,85.55,85.504,11.6953177]
[1772120102235,0.94581157,85.55,85.504,11.6953177]
[1772120102407,0.94581157,85.568,85.511,1.34050877]
[1772120103338,40.90266334,85.569,85.498,11.69607901]
[1772120103339,15.82892634,85.53,85.498,11.69607901]
[1772120103504,0.94439045,85.542,85.501,1.34050877]
[1772120103708,46.729677,85.599,85.474,46.79781143]
[1772120103709,15.82892634,85.55,85.513,1.34050877]
[1772120103916,15.82892634,85.54,85.513,1.34050877]
[1772120104131,15.82892634,85.55,85.513,1.34050877]
[1772120104333,15.82892634,85.56,85.521,1.34050877]
[1772120104518,0.94298565,85.57,85.521,1.34050877]
[1772120104719,15.82892634,85.56,85.521,1.34050877]
[1772120105808,16.77191199,85.57,85.531,1.34050877]
[1772120106137,0.94022426,85.568,85.522,40.92514206]
[1772120106323,0.94022426,85.598,85.541,1.34050877]
[1772120106523,15.82892634,85.6,85.56,15.82892634]
[1772120106828,15.82892634,85.6,85.561,1.34050877]
[1772120107202,15.82892634,85.57,85.531,1.34050877]
[1772120107407,15.82892634,85.57,85.541,1.34050877]
[1772120107612,15.82892634,85.58,85.541,1.34050877]
[1772120108028,15.82892634,85.57,85.541,13.03067743]
[1772120108706,15.82892634,85.57,85.508,3.69383402]
[1772120108707,15.82892634,85.56,85.531,11.69156652]
[1772120108911,5.36086188,85.592,85.532,1.34050877]
[1772120109119,227.75850585,85.617,85.532,1.34050877]
[1772120109120,15.82892634,85.58,85.532,1.34050877]
[1772120109432,15.82892634,85.59,85.551,1.34050877]
[1772120109918,27.51122733,85.6,85.562,11.68743133]
[1772120110120,27.51122733,85.6,85.563,1.34050877]
[1772120110635,0.70375927,85.608,85.563,1.34050877]
[1772120110846,15.82892634,85.6,85.563,1.34050877]
[1772120111534,0.70375927,85.608,85.563,1.34050877]
[1772120111742,11.68101484,85.609,85.571,1.34050877]
[1772120111918,11.68237946,85.599,85.562,13.0279401]
[1772120112238,11.68237946,85.599,85.552,29.22192154]
[1772120112239,15.82892634,85.59,85.552,1.34050877]
[1772120112530,15.82892634,85.6,85.552,1.34050877]
[1772120112737,11.67815018,85.63,85.571,1.34050877]
[1772120113033,15.82892634,85.62,85.581,1.34050877]
[1772120113211,11.67815018,85.63,85.569,1.34050877]
[1772120113212,10.12629875,85.6,85.569,1.34050877]
[1772120113411,10.12629875,85.6,85.56,10.12629875]
[1772120113631,10.12629875,85.6,85.56,11.46680752]
[1772120113940,10.12629875,85.6,85.561,1.34050877]
[1772120114121,10.12629875,85.61,85.571,1.34050877]
[1772120114321,10.12629875,85.6,85.562,11.68743133]
[1772120114716,10.12629875,85.58,85.521,1.34050877]
[1772120115016,10.12629875,85.58,85.541,1.34050877]
[1772120115918,10.12629875,85.57,85.523,1.34050877]
[1772120116118,21.81404203,85.56,85.524,11.69262429]
[1772120116322,10.12629875,85.55,85.523,1.34050877]
[1772120116738,11.41364375,85.54,85.497,29.24062723]
[1772120116918,11.41364375,85.54,85.5,10.12629875]
[1772120117120,10.12629875,85.55,85.51,10.12629875]
[1772120117318,1.287345,85.549,85.51,10.12629875]
[1772120117539,10.12629875,85.54,85.5,10.12629875]
[1772120118236,10.12629875,85.54,85.491,11.69713771]
[1772120118237,1.287345,85.529,85.48,10.12629875]
[1772120118419,11.41364375,85.52,85.471,11.69987481]
[1772120118618,11.69057389,85.539,85.471,11.69987481]
[1772120118619,10.12629875,85.51,85.472,1.34050877]
[1772120119623,40.91700861,85.539,85.449,11.70280128]
[1772120119624,10.12629875,85.48,85.449,11.70280128]
[1772120119837,10.12629875,85.5,85.461,1.34050877]
[1772120120347,10.12629875,85.49,85.461,1.34050877]
[1772120120652,11.69543803,85.504,85.463,1.34050877]
[1772120120949,10.12629875,85.5,85.463,1.34050877]
[1772120121122,10.12629875,85.49,85.453,11.70233929]
[1772120121323,10.12629875,85.49,85.451,1.34050877]
[1772120121529,1.287345,85.479,85.438,13.04482289]
[1772120121736,1.287345,85.479,85.439,1.34050877]
[1772120121941,1.287345,85.479,85.41,46.83243831]
[1772120121942,10.12629875,85.47,85.433,11.70497084]
[1772120122325,11.70014859,85.469,85.433,11.70497084]
[1772120122637,11.70014859,85.469,85.398,3.69383402]
[1772120122638,1.287345,85.449,85.417,11.70727138]
[1772120122848,10.12629875,85.44,85.417,11.70727138]
[1772120123221,1.287345,85.449,85.417,11.70727138]
[1772120123418,10.12629875,85.47,85.431,1.34050877]
[1772120123723,10.12629875,85.45,85.417,11.70727138]
[1772120124047,1.287345,85.459,85.421,1.34050877]
[1772120124237,10.12629875,85.46,85.423,1.34050877]
[1772120124441,11.70069302,85.466,85.43,11.46680752]
[1772120124831,10.12629875,85.48,85.44,10.12629875]
[1772120125432,11.69741136,85.489,85.451,1.34050877]
[1772120125739,10.12629875,85.48,85.44,10.12629875]
[1772120125947,10.12629875,85.47,85.43,10.12629875]
[1772120126121,1.38155107,85.469,85.423,1.34050877]
[1772120126324,11.70028548,85.468,85.431,1.33707359]
[1772120126526,10.12629875,85.46,85.431,1.33707359]
[1772120127229,40.95099919,85.468,85.431,1.33707359]
[1772120127843,11.70028548,85.468,85.431,1.33707359]
[1772120128224,11.70028548,85.468,85.433,1.33707359]
[1772120128426,11.69741136,85.489,85.45,10.12629875]
[1772120128623,46.76389638,85.537,85.432,40.96825545]
[1772120128624,1.38155107,85.503,85.451,1.33707359]
[1772120128849,1.38155107,85.509,85.471,1.33707359]
[1772120129143,10.12629875,85.48,85.446,1.33707359]
[1772120129349,10.15449165,85.48,85.446,1.33707359]
[1772120129724,10.15449165,85.49,85.451,1.33707359]
[1772120129930,10.15449165,85.47,85.437,1.33707359]
[1772120130129,10.15449165,85.46,85.425,1.33707359]
[1772120130448,11.70151768,85.459,85.426,11.70603797]
[1772120130627,11.70042238,85.467,85.431,1.33707359]
[1772120131028,10.15449165,85.46,85.431,1.33707359]
[1772120131430,1.38155107,85.466,85.421,1.33707359]
[1772120131635,10.15449165,85.46,85.421,1.33707359]
[1772120132037,10.15449165,85.47,85.431,1.33707359]
[1772120132445,10.15449165,85.5,85.452,1.33707359]
[1772120132646,10.15449165,85.5,85.451,40.95914617]
[1772120132647,11.69467541,85.509,85.471,1.33707359]
[1772120132839,10.15449165,85.51,85.471,1.33707359]
[1772120133041,46.75248502,85.557,85.5,10.15449165]
[1772120133042,1.38155107,85.557,85.5,10.15449165]
[1772120133240,1.38155107,85.529,85.491,1.33707359]
[1772120133440,10.15449165,85.54,85.491,1.33707359]
[1772120133842,1.38155107,85.545,85.491,1.33707359]
[1772120133843,10.15449165,85.53,85.491,1.33707359]
[1772120134251,10.15449165,85.52,85.477,1.33707359]